bitfinex-derivatives/quotes_SOLF0:USTF0_20241127
["timestamp","ask_amount","ask_price","bid_price","bid_amount"]
[1732694929936,2.22,234.26,234.19,2.5862]
[1732694930137,6.72355235,234.25,234.1,2.22]
[1732694930339,6.72355235,234.25,234.15,6.72355235]
[1732694931137,6.72355235,234.25,234.19,2.1355]
[1732694931539,6.72355235,234.25,234.11,2.5244]
[1732694931738,2.22,234.26,234.18,2.1356]
[1732694931739,6.72355235,234.23,234.18,2.1356]
[1732694931940,2.22,234.26,234.16,6.72355235]
[1732694932241,8.94355235,234.26,234.21,2.1353]
[1732694932638,2.22,234.25,234.21,2.1353]
[1732694933735,6.72355235,234.26,234.18,6.72355235]
[1732694933943,2.22,234.25,234.23,2.1351]
[1732694934339,2.14130212,234.37,234.22,6.72355235]
[1732694934538,2.22,234.36,234.24,6.72355235]
[1732694934842,6.72355235,234.31,234.22,6.72355235]
[1732694935044,2.22,234.3,234.22,6.72355235]
[1732694936242,2.22,234.3,234.22,10.50124281]
[1732694936449,2.22,234.33,234.3,2.1344]
[1732694937451,2.22,234.33,234.23,3.7398]
[1732694938844,2.22,234.33,234.27,2.1348]
[1732694939948,2.22,234.33,234.28,2.1347]
[1732694940647,2.1345,234.3,234.25,2.135]
[1732694940848,10.50124281,234.31,234.17,10.50124281]
[1732694941047,10.50124281,234.31,234.17,13.03064281]
[1732694941249,2.1347,234.29,234.22,2.1352]
[1732694941449,10.50124281,234.31,234.17,2.5294]
[1732694941946,2.1345,234.3,234.24,2.135]
[1732694942153,10.50124281,234.31,234.17,2.5294]
[1732694942356,2.1346,234.29,234.17,2.5294]
[1732694943951,10.50124281,234.31,234.2,2.1354]
[1732694944152,2.1349,234.26,234.2,2.1354]
[1732694944351,2.2,234.25,234.2,2.1354]
[1732694944559,2.2,234.25,234.11,2.2]
[1732694944560,2.2,234.25,234.18,2.1355]
[1732694944949,2.2,234.25,234.11,4.7353]
[1732694945155,2.2,234.25,234.19,2.1355]
[1732694945351,2.2,234.25,234.11,4.7353]
[1732694945751,4.335,234.25,234.11,4.7353]
[1732694945956,4.335,234.25,234.11,2.5353]
[1732694946356,14.83624281,234.25,234.18,2.1356]
[1732694946656,14.83624281,234.25,234.11,2.5353]
[1732694946657,12.70124281,234.25,234.11,2.5353]
[1732694946857,2.1352,234.22,234.16,2.1358]
[1732694947055,12.70124281,234.25,234.16,2.1358]
[1732694947754,10.50124281,234.28,234.13,10.50124281]
[1732694947959,2.2,234.27,234.11,2.5353]
[1732694948159,2.2,234.27,234.22,2.1352]
[1732694948657,2.2,234.27,234.23,2.1351]
[1732694948862,11.72914281,234.31,234.16,10.50124281]
[1732694949058,2.2,234.3,234.17,1.2268]
[1732694949653,2.1347,234.29,234.22,2.1352]
[1732694949964,2.1347,234.29,234.17,1.2268]
[1732694950858,10.50124281,234.28,234.17,1.2268]
[1732694951563,2.1349,234.27,234.21,2.1353]
[1732694952460,2.1349,234.26,234.21,2.1353]
[1732694952660,2.2,234.25,234.21,2.1353]
[1732694953563,10.50124281,234.31,234.17,1.2268]
[1732694953763,10.50124281,234.34,234.19,10.50124281]
[1732694953956,20.37657764,234.33,234.19,10.50124281]
[1732694954162,18.17657764,234.32,234.29,2.1346]
[1732694954364,2.2,234.33,234.29,2.1346]
[1732694955065,2.2,234.33,234.26,2.1348]
[1732694955567,2.1345,234.3,234.23,2.1351]
[1732694955765,2.1345,234.3,234.21,1.2044]
[1732694956168,10.50124281,234.31,234.26,2.1348]
[1732694956367,6.72401903,234.28,234.26,2.1348]
[1732694956568,2.2,234.27,234.26,2.1348]
[1732694957462,2.2,234.27,234.21,1.2044]
[1732694957668,6.72401903,234.25,234.16,6.72401903]
[1732694958258,2.2,234.27,234.12,2.2]
[1732694958259,2.2,234.27,234.13,10.50917381]
[1732694959368,4.3348,234.27,234.21,2.1353]
[1732694960270,4.3348,234.27,234.22,2.1352]
[1732694961372,2.2,234.27,234.16,10.50917381]
[1732694961873,2.2,234.28,234.24,2.135]
[1732694962967,2.2,234.28,234.17,2.2]
[1732694963168,2.2,234.28,234.16,10.50917381]
[1732694963466,2.2,234.28,234.17,2.2]
[1732694963670,2.2,234.28,234.23,2.135]
[1732694963862,2.2,234.28,234.17,2.2]
[1732694964267,2.2,234.28,234.13,12.70917381]
[1732694964467,18.22878005,234.27,234.13,12.70917381]
[1732694964667,2.135,234.25,234.13,12.70917381]
[1732694964868,2.135,234.25,234.18,2.1355]
[1732694965068,2.1349,234.26,234.13,12.70917381]
[1732694966876,2.1349,234.26,234.2,2.1354]
[1732694967674,2.135,234.25,234.19,2.1355]
[1732694968570,10.50917381,234.26,234.21,2.1353]
[1732694968770,8.45103079,234.25,234.21,2.1353]
[1732694968971,18.22934414,234.25,234.21,2.1353]
[1732694969171,12.64407381,234.26,234.21,2.1353]
[1732694969366,18.2294934,234.25,234.22,2.1352]
[1732694969572,2.1349,234.26,234.22,2.1352]
[1732694969971,8.45108079,234.25,234.22,2.1352]
[1732694970172,2.1349,234.26,234.22,2.1352]
[1732694972476,2.1348,234.27,234.22,2.1352]
[1732694972879,2.2,234.28,234.22,2.1352]
[1732694973777,4.3348,234.28,234.23,2.1351]
[1732694973984,10.50917381,234.32,234.16,12.68917381]
[1732694974277,2.18,234.31,234.16,12.68917381]
[1732694974881,2.18,234.31,234.16,2.18]
[1732694975177,2.18,234.31,234.21,2.1353]
[1732694975178,2.1349,234.26,234.21,2.1353]
[1732694975375,2.18,234.25,234.12,12.68917381]
[1732694976082,2.18,234.25,234.15,2.1358]
[1732694976376,2.18,234.25,234.12,12.68917381]
[1732694978575,2.18,234.25,234.24,2.135]
[1732694978970,2.18,234.29,234.24,2.135]
[1732694980280,6.72384445,234.28,234.24,2.135]
[1732694980482,6.72384445,234.28,234.12,2.18]
[1732694980680,6.72384445,234.28,234.19,6.72384445]
[1732694982180,6.72384445,234.28,234.22,2.1352]
[1732694982781,6.72384445,234.28,234.19,6.72384445]
[1732694982981,6.72384445,234.28,234.23,2.1351]
[1732694983380,8.45848421,234.27,234.23,2.1351]
[1732694985181,10.63848421,234.27,234.23,2.1351]
[1732694985379,2.18,234.27,234.23,2.1351]
[1732694986786,2.18,234.27,234.19,6.72384445]
[1732694986991,2.18,234.27,234.24,2.135]
[1732694987883,2.18,234.27,234.25,2.1349]
[1732694989581,6.72384445,234.26,234.23,2.1351]
[1732694989786,6.72384445,234.26,234.2,2.524]
[1732694989990,6.72384445,234.26,234.21,2.1353]
[1732694990191,6.72384445,234.24,234.21,2.1353]
[1732694990390,6.72384445,234.24,234.2,1.2584]
[1732694990782,6.72384445,234.24,234.2,3.3937]
[1732694990984,6.72384445,234.24,234.2,1.2584]
[1732694991289,6.72384445,234.24,234.21,2.1353]
[1732694992592,6.72384445,234.24,234.14,1.2947]
[1732694992794,6.72384445,234.22,234.2,2.1354]
[1732694993090,2.18,234.27,234.14,9.27954445]
[1732694993293,6.72384445,234.24,234.16,6.72384445]
[1732694994189,6.72384445,234.24,234.2,2.1354]
[1732694994398,6.72384445,234.24,234.16,6.72384445]
[1732694994590,6.72384445,234.22,234.14,2.5557]
[1732694994897,6.72384445,234.2,234.14,2.5557]
[1732694995602,6.72384445,234.2,234.17,2.1356]
[1732694996287,6.72384445,234.2,234.14,2.5557]
[1732694996494,6.72384445,234.2,234.18,2.1356]
[1732694998193,8.90384445,234.22,234.18,2.1356]
[1732694998894,2.18,234.22,234.19,2.1355]
[1732694999096,8.90384445,234.22,234.19,2.1355]
[1732695000393,8.90384445,234.22,234.2,2.1354]
[1732695000593,2.18,234.22,234.2,2.1354]
[1732695001199,2.18,234.22,234.17,2.1357]
[1732695001493,2.18,234.22,234.15,6.72384445]
[1732695004195,6.72384445,234.2,234.14,2.5557]
[1732695004398,6.72384445,234.18,234.14,2.5557]
[1732695004594,6.72384445,234.16,234.07,6.72384445]
[1732695004799,8.90384445,234.16,234.08,2.77800498]
[1732695005103,2.18,234.16,234.09,7.7923079]
[1732695005297,2.18,234.16,234.09,6.72384445]
[1732695005695,8.90384445,234.16,234.09,6.72384445]
[1732695005895,8.90384445,234.16,234.12,2.1361]
[1732695007101,2.18,234.16,234.12,2.1361]
[1732695007296,2.18,234.16,234.09,6.72384445]
[1732695007501,2.18,234.16,234.13,2.136]
[1732695008397,8.90384445,234.16,234.13,2.136]
[1732695009793,8.90384445,234.16,234.14,2.1359]
[1732695009993,2.18,234.16,234.14,2.1359]
[1732695010201,2.18,234.16,234.11,6.72384445]
[1732695010499,2.18,234.2,234.13,6.72384445]
[1732695010801,2.18,234.21,234.13,6.72384445]
[1732695011004,2.18,234.21,234.15,2.1358]
[1732695011198,2.18,234.21,234.13,6.72384445]
[1732695013110,2.18,234.21,234.18,2.1356]
[1732695013910,2.18,234.21,234.11,1.2512]
[1732695013911,6.72384445,234.23,234.15,6.72384445]
[1732695014112,8.90384445,234.23,234.15,6.72384445]
[1732695014607,8.90384445,234.23,234.17,2.1356]
[1732695014806,8.90384445,234.23,234.15,6.72384445]
[1732695015002,6.72384445,234.21,234.13,6.72384445]
[1732695015202,8.90384445,234.23,234.15,6.72384445]
[1732695017306,8.90384445,234.23,234.2,2.1354]
[1732695018212,8.90384445,234.23,234.22,2.1352]
[1732695018403,8.90384445,234.25,234.22,2.1352]
[1732695018603,2.18,234.25,234.17,6.72384445]
[1732695018807,6.72384445,234.27,234.24,2.135]
[1732695019007,8.90384445,234.27,234.18,2.5885]
[1732695019215,8.90384445,234.27,234.17,6.72384445]
[1732695019419,8.90384445,234.27,234.18,2.5885]
[1732695019815,2.18,234.27,234.15,6.72384445]
[1732695020019,20.36352708,234.26,234.12,2.5885]
[1732695020217,6.72384445,234.19,234.16,2.1357]
[1732695020412,6.72384445,234.19,234.12,2.5885]
[1732695020720,6.72384445,234.19,234.11,7.97504445]
[1732695021113,6.72384445,234.19,234.18,2.1356]
[1732695021314,2.18,234.2,234.18,2.1356]
[1732695021514,2.18,234.2,234.13,6.72384445]
[1732695021722,2.18,234.2,234.12,6.72384445]
[1732695023519,2.18,234.2,234.19,2.1355]
[1732695024017,6.72384445,234.24,234.19,2.1355]
[1732695024217,2.18,234.23,234.19,2.1355]
[1732695024419,2.18,234.23,234.2,2.1354]
[1732695025921,6.72384445,234.22,234.13,6.72384445]
[1732695026116,6.72384445,234.22,234.17,2.1356]
[1732695026523,2.18,234.23,234.13,6.72384445]
[1732695026725,6.72384445,234.22,234.13,6.72384445]
[1732695027424,6.72384445,234.22,234.19,2.1354]
[1732695027924,2.18,234.23,234.15,6.72384445]
[1732695028116,2.18,234.23,234.21,2.1352]
[1732695029621,2.1349,234.26,234.14,6.72384445]
[1732695029923,2.18,234.25,234.18,6.72384445]
[1732695030122,2.18,234.27,234.2,6.72384445]
[1732695031121,2.18,234.27,234.19,1.2466]
[1732695031428,6.72384445,234.26,234.19,1.2466]
[1732695032936,2.18,234.22,234.21,2.1353]
[1732695042851,3.7715,234.35,234.21,6.72384445]
[1732695043054,6.72384445,234.31,234.21,6.72384445]
[1732695043244,18.23279362,234.3,234.21,6.72384445]
[1732695043447,6.72384445,234.31,234.28,2.1346]
[1732695043645,18.22922381,234.3,234.23,6.72384445]
[1732695043955,2.18,234.31,234.23,6.72384445]
[1732695044760,2.18,234.31,234.3,2.1345]
[1732695044968,6.72384445,234.35,234.25,6.72384445]
[1732695045155,2.18,234.38,234.29,6.72384445]
[1732695045451,8.90384445,234.38,234.29,6.72384445]
[1732695046334,8.90384445,234.38,234.34,2.1341]
[1732695046831,8.90384445,234.38,234.36,2.1339]
[1732695047026,6.72384445,234.4,234.31,6.72384445]
[1732695048129,6.72384445,234.4,234.33,6.72384445]
[1732695048729,6.72384445,234.4,234.37,2.1338]
[1732695049728,6.72384445,234.38,234.29,2.5183]
[1732695049941,6.72384445,234.36,234.29,2.5183]
[1732695050130,8.90384445,234.36,234.29,2.5183]
[1732695050327,8.90384445,234.36,234.31,2.1344]
[1732695050533,8.90384445,234.36,234.29,2.5183]
[1732695052234,6.72384445,234.34,234.3,2.1345]
[1732695053329,6.72384445,234.32,234.23,1.3231]
[1732695053543,6.72384445,234.28,234.19,1.2838]
[1732695053730,6.72384445,234.28,234.19,8.00764445]
[1732695054627,6.72384445,234.28,234.21,6.72384445]
[1732695055335,6.72384445,234.28,234.25,2.1349]
[1732695056732,6.72384445,234.26,234.19,1.2838]
[1732695056926,2.18,234.29,234.17,6.72384445]
[1732695056927,6.72384445,234.24,234.17,6.72384445]
[1732695057535,6.72384445,234.24,234.21,2.1353]
[1732695057737,6.72384445,234.22,234.14,2.5779]
[1732695057935,6.72384445,234.22,234.14,9.30174445]
[1732695058936,6.72384445,234.2,234.17,2.1356]
[1732695059442,2.18,234.19,234.17,2.1356]
[1732695060437,6.72384445,234.18,234.1,6.72384445]
[1732695061030,6.72384445,234.18,234.12,2.1361]
[1732695061230,6.72384445,234.18,234.1,6.72384445]
[1732695061635,6.72384445,234.18,234.14,2.136]
[1732695062435,12.82,234.45,234.25,2.1349]
[1732695062638,6.72384445,234.31,234.23,6.72384445]
[1732695062841,2.18,234.3,234.23,6.72384445]
[1732695063136,2.18,234.3,234.21,6.72384445]
[1732695063338,2.18,234.3,234.12,2.18]
[1732695063339,6.72384445,234.27,234.12,2.18]
[1732695063539,6.72384445,234.27,234.17,6.72384445]
[1732695063842,6.72384445,234.27,234.21,2.1353]
[1732695064545,6.72384445,234.27,234.2,2.1354]
[1732695064840,6.72384445,234.27,234.17,6.72384445]
[1732695065834,6.72384445,234.27,234.21,2.1353]
[1732695066038,6.72384445,234.27,234.12,1.06820185]
[1732695066039,6.72384445,234.23,234.12,6.72384445]
[1732695066240,6.72384445,234.2,234.12,6.72384445]
[1732695066537,2.18,234.19,234.12,6.72384445]
[1732695067143,2.18,234.19,234.16,2.1358]
[1732695067537,2.18,234.19,234.1,6.72384445]
[1732695067743,6.72384445,234.18,234.14,2.1359]
[1732695068237,6.72384445,234.16,234.07,6.72384445]
[1732695068546,6.72384445,234.16,234.09,6.72384445]
[1732695068744,6.72384445,234.16,234.06,3.7948]
[1732695068941,6.72384445,234.16,234.09,6.72384445]
[1732695069245,6.72384445,234.18,234.14,2.1359]
[1732695070443,2.18,234.19,234.14,2.1359]
[1732695070750,2.18,234.19,234.15,2.1359]
[1732695070941,2.18,234.19,234.06,3.7948]
[1732695071849,2.18,234.19,234.14,2.1359]
[1732695072543,4.3155,234.19,234.14,2.1359]
[1732695072744,2.18,234.19,234.06,3.7948]
[1732695073548,2.1356,234.18,234.06,3.7948]
[1732695073745,2.18,234.19,234.06,3.7948]
[1732695074345,2.18,234.19,234.12,2.1361]
[1732695074645,2.18,234.19,234.06,3.7948]
[1732695075050,4.3155,234.19,234.06,3.7948]
[1732695076042,2.18,234.18,234.06,3.7948]
[1732695076645,2.18,234.18,234.09,2.1364]
[1732695076847,2.18670841,234.2,234.06,3.7948]
[1732695077148,2.1356,234.18,234.06,3.7948]
[1732695077743,2.18,234.17,234.06,3.7948]
[1732695078251,2.18,234.17,234.12,2.1361]
[1732695078847,2.18,234.17,234.06,3.7948]
[1732695079049,2.18,234.17,234.13,2.136]
[1732695079447,2.18,234.17,234.06,2.4827]
[1732695079643,2.18,234.17,234.0,1.2714]
[1732695079840,10.51528938,234.15,234.0,1.2714]
[1732695080041,10.51528938,234.15,234.07,2.1365]
[1732695080042,2.136,234.14,234.07,2.1365]
[1732695080342,2.136,234.14,234.0,1.2714]
[1732695080553,2.1362,234.12,234.0,1.2714]
[1732695080741,2.18,234.11,234.0,1.2714]
[1732695081146,2.18,234.11,234.05,2.1368]
[1732695082148,2.18,234.11,234.0,1.2714]
[1732695082349,2.18,234.11,234.06,2.1367]
[1732695083040,3.7646,234.2,234.05,10.51528938]
[1732695083041,10.51528938,234.18,234.05,10.51528938]
[1732695083246,2.18,234.17,234.05,10.51528938]
[1732695084148,4.3157,234.17,234.05,10.51528938]
[1732695084645,4.3157,234.17,234.02,10.51528938]
[1732695084849,2.18,234.17,234.02,10.51528938]
[1732695085047,10.51528938,234.15,234.0,1.2714]
[1732695085443,2.136,234.14,234.07,2.1366]
[1732695085646,10.51528938,234.15,234.07,2.1366]
[1732695086546,2.1361,234.13,234.07,2.1366]
[1732695086748,12.69528938,234.12,234.0,1.2714]
[1732695087042,2.18,234.11,234.0,1.2714]
[1732695088253,2.18,234.11,234.06,2.1367]
[1732695089042,12.65168938,234.09,234.02,2.137]
[1732695089245,12.65168938,234.09,233.96,1.275]
[1732695089553,12.65168938,234.09,233.97,0.1941]
[1732695089753,12.65168938,234.09,234.03,2.137]
[1732695090054,10.51528938,234.09,233.97,0.1941]
[1732695090551,10.51528938,234.12,233.98,10.51528938]
[1732695090949,2.18,234.11,234.09,2.1364]
[1732695091149,2.18,234.1,233.98,10.51528938]
[1732695091350,2.18,234.09,233.98,10.51528938]
[1732695091549,10.51528938,234.15,234.1,2.1363]
[1732695091748,2.1362,234.11,233.97,0.1941]
[1732695091954,10.51528938,234.08,233.97,0.1941]
[1732695092150,2.18,234.07,233.97,0.1941]
[1732695092447,2.18,234.07,233.97,6.93050955]
[1732695092448,6.73640955,234.05,233.97,6.93050955]
[1732695092654,6.73640955,234.05,234.02,2.137]
[1732695093251,6.73640955,234.03,234.01,2.1371]
[1732695093447,2.18,234.02,234.01,2.1371]
[1732695093653,2.18,234.02,233.97,0.1941]
[1732695093953,6.73640955,234.01,233.97,0.1941]
[1732695094148,6.73640955,234.01,234.0,2.1372]
[1732695094349,6.73640955,234.01,233.97,0.1941]
[1732695094554,6.73640955,233.98,233.97,0.1941]
[1732695096350,10.53282778,234.01,233.97,0.1941]
[1732695100058,10.53282778,234.01,233.97,2.3316]
[1732695101553,2.18,234.0,233.97,2.3316]
[1732695101860,10.53282778,234.01,233.97,2.3316]
[1732695101861,2.18,233.99,233.97,2.3316]
[1732695103261,10.53282778,234.01,233.99,2.1373]
[1732695103465,10.53282778,234.04,233.97,0.1941]
[1732695103763,2.18,234.03,233.97,0.1941]
[1732695104264,10.53282778,234.07,234.03,2.137]
[1732695104460,10.53282778,234.07,233.97,0.1941]
[1732695104461,2.18,234.06,233.97,0.1941]
[1732695105059,2.18,234.05,233.97,0.1941]
[1732695105964,21.61033357,234.09,234.05,2.1367]
[1732695106164,2.18,234.08,234.05,2.1367]
[1732695107061,2.18,234.08,234.06,2.1367]
[1732695108064,2.18,234.08,233.97,0.1941]
[1732695108269,2.18,234.08,233.95,10.53282778]
[1732695108760,2.18,234.08,233.96,1.06898408]
[1732695108960,2.18,234.08,233.95,10.53282778]
[1732695108961,2.18,234.09,233.97,1.06897203]
[1732695109163,2.18,234.09,233.95,10.53282778]
[1732695109466,2.18,234.09,233.96,1.06894231]
[1732695109666,2.18,234.09,233.97,1.06894231]
[1732695109855,2.18,234.09,234.07,2.1365]
[1732695110063,2.18,234.09,233.96,2.18]
[1732695110263,2.18,234.09,233.97,1.06891206]
[1732695110461,10.53282778,234.13,233.98,1.06891206]
[1732695110656,2.18,234.12,233.98,10.53282778]
[1732695111063,2.18,234.12,234.08,2.1364]
[1732695111663,2.18,234.12,234.09,2.1364]
[1732695112568,10.53282778,234.13,234.1,2.1363]
[1732695112766,10.53282778,234.13,233.98,10.53282778]
[1732695113070,4.2684,234.34,233.96,2.18]
[1732695113071,10.53282778,234.18,234.01,10.53282778]
[1732695113268,2.18,234.17,234.02,3.8239]
[1732695113470,2.18,234.17,234.13,2.136]
[1732695113764,2.18,234.17,234.03,2.18]
[1732695114671,2.18,234.17,234.14,2.136]
[1732695115364,2.18,234.17,234.15,2.1359]
[1732695115761,2.18,234.17,234.04,10.53282778]
[1732695116066,2.18,234.17,234.03,2.18]
[1732695116968,2.18,234.17,234.12,2.1361]
[1732695118373,6.73139821,234.14,234.12,2.1361]
[1732695119078,6.73139821,234.14,234.13,2.136]
[1732695121064,6.73139821,234.14,234.05,6.73139821]
[1732695121269,6.73139821,234.14,234.11,2.1361]
[1732695121469,6.73139821,234.14,234.05,6.73139821]
[1732695123274,6.73139821,234.14,234.12,2.1361]
[1732695127774,6.73139821,234.14,234.08,2.1365]
[1732695127971,6.73139821,234.14,234.07,6.73139821]
[1732695128478,6.73139821,234.14,234.12,2.1361]
[1732695129079,6.73139821,234.14,234.09,2.1364]
[1732695129276,6.73139821,234.14,234.07,6.73139821]
[1732695129673,6.73139821,234.14,234.12,2.1361]
[1732695130882,6.73139821,234.14,234.13,2.136]
[1732695131282,6.73139821,234.18,234.1,6.73139821]
[1732695131479,6.73139821,234.21,234.12,6.73139821]
[1732695131680,8.91139821,234.21,234.12,6.73139821]
[1732695131877,8.91139821,234.21,234.18,2.1356]
[1732695133077,8.91139821,234.21,234.13,1.3298]
[1732695134582,8.91139821,234.21,234.18,2.1355]
[1732695136183,8.91139821,234.21,234.08,2.18]
[1732695136386,8.91139821,234.21,234.16,2.1357]
[1732695136591,6.73139821,234.19,234.12,6.73139821]
[1732695136992,6.73139821,234.19,234.17,2.1357]
[1732695137186,6.73139821,234.19,234.12,6.73139821]
[1732695137187,2.18,234.21,234.12,6.73139821]
[1732695137397,6.73139821,234.2,234.12,6.73139821]
[1732695138094,6.73139821,234.18,234.08,2.18]
[1732695138293,6.73139821,234.18,234.09,6.73139821]
[1732695138688,6.73139821,234.14,234.06,1.2377]
[1732695138994,6.73139821,234.08,233.98,7.80012998]
[1732695139196,6.73139821,234.05,234.04,2.1369]
[1732695139398,6.73139821,234.05,233.98,8.04029821]
[1732695140099,6.73139821,234.05,234.04,2.1369]
[1732695140290,6.73139821,234.05,233.98,1.3089]
[1732695140493,6.73139821,234.02,234.01,2.1371]
[1732695141704,6.73139821,234.04,234.01,2.1371]
[1732695142094,6.73139821,234.04,233.96,9.26389821]
[1732695142293,6.73139821,234.04,234.02,2.137]
[1732695142999,2.18,234.07,233.98,6.73139821]
[1732695143194,8.91139821,234.07,233.98,6.73139821]
[1732695144101,1.2175,234.19,234.02,6.73139821]
[1732695144102,6.73139821,234.09,234.02,6.73139821]
[1732695145394,2.18,234.1,234.09,2.1364]
[1732695146695,8.91139821,234.13,234.09,2.1364]
[1732695146901,6.73139821,234.11,234.09,2.1364]
[1732695148499,6.73139821,234.11,234.1,2.1363]
[1732695150302,2.18,234.13,234.11,2.1362]
[1732695150602,8.91139821,234.13,234.11,2.1362]
[1732695151194,1.2175,234.19,234.08,6.73139821]
[1732695151400,6.73139821,234.17,234.1,6.73139821]
[1732695151607,2.18,234.18,234.1,6.73139821]
[1732695151794,2.18,234.18,234.17,2.1357]
[1732695152196,2.18,234.18,234.15,2.1358]
[1732695152405,6.73139821,234.17,234.15,2.1358]
[1732695153102,6.73139821,234.17,234.08,6.73139821]
[1732695153305,6.73139821,234.17,234.06,2.5833]
[1732695153306,6.73139821,234.17,234.16,2.1358]
[1732695153494,1.251,234.27,234.1,6.73139821]
[1732695153696,6.73139821,234.2,234.14,2.1359]
[1732695154003,2.18,234.19,234.12,6.73139821]
[1732695154404,2.18,234.19,234.18,2.1356]
[1732695154804,2.18,234.19,234.12,6.73139821]
[1732695155301,6.73139821,234.18,234.06,2.5833]
[1732695155497,2.18,234.19,234.11,6.73139821]
[1732695155699,2.18,234.19,234.07,1.06850934]
[1732695155700,2.18,234.21,234.13,6.73139821]
[1732695156698,2.18,234.21,234.19,2.1355]
[1732695156899,2.18,234.23,234.17,6.73139821]
[1732695157299,6.73139821,234.25,234.17,6.73139821]
[1732695157607,6.73139821,234.27,234.24,2.135]
[1732695158098,6.73139821,234.27,234.22,2.1351]
[1732695158303,6.73139821,234.27,234.19,6.73139821]
[1732695158909,6.73139821,234.27,234.15,2.4838]
[1732695159205,6.73139821,234.27,234.19,6.73139821]
[1732695160302,8.91139821,234.29,234.21,6.73139821]
[1732695160595,6.73139821,234.29,234.21,6.73139821]
[1732695161806,6.73139821,234.29,234.27,2.1347]
[1732695162405,6.73139821,234.29,234.26,2.1348]
[1732695163202,6.73139821,234.29,234.23,2.1351]
[1732695163409,6.73139821,234.29,234.2,6.73139821]
[1732695164107,6.73139821,234.29,234.25,2.1349]
[1732695164304,6.73139821,234.28,234.25,2.1349]
[1732695165902,6.73139821,234.28,234.2,6.73139821]
[1732695166101,6.73139821,234.28,234.23,2.1351]
[1732695166900,6.73139821,234.24,234.21,2.1353]
[1732695167100,6.73139821,234.22,234.15,2.4838]
[1732695167308,15.357,234.36,234.17,6.73139821]
[1732695167309,2.18,234.24,234.17,6.73139821]
[1732695167503,2.18,234.24,234.15,2.4838]
[1732695167504,2.18,234.29,234.21,6.73139821]
[1732695167704,2.537,234.36,234.21,6.73139821]
[1732695167705,6.73139821,234.3,234.21,6.73139821]
[1732695168207,6.73139821,234.3,234.29,2.1346]
[1732695168404,6.73139821,234.3,234.21,6.73139821]
[1732695168598,6.73139821,234.3,234.27,2.1347]
[1732695169411,6.73139821,234.28,234.27,2.1347]
[1732695169607,8.91139821,234.28,234.15,11.39519821]
[1732695169816,6.73139821,234.24,234.15,11.39519821]
[1732695170305,6.73139821,234.24,234.15,4.6638]
[1732695170713,6.73139821,234.24,234.16,6.73139821]
[1732695170902,6.73139821,234.24,234.2,2.1353]
[1732695171909,6.73139821,234.22,234.19,2.1355]
[1732695172206,6.73139821,234.22,234.14,1.2092]
[1732695172706,6.73139821,234.2,234.11,6.73139821]
[1732695173212,6.73139821,234.2,234.16,2.1357]
[1732695174215,6.73139821,234.2,234.17,2.1357]
[1732695174909,6.73139821,234.2,234.11,6.73139821]
[1732695175303,6.73139821,234.2,234.13,2.136]
[1732695175607,6.73139821,234.2,234.11,6.73139821]
[1732695176012,6.73139821,234.2,234.13,6.73139821]
[1732695176207,6.73139821,234.2,234.15,2.1358]
[1732695176809,2.18,234.23,234.13,6.73139821]
[1732695177115,6.73139821,234.22,234.16,2.1358]
[1732695178814,6.73139821,234.22,234.13,6.73139821]
[1732695179110,6.73139821,234.22,234.08,4.7222]
[1732695179311,6.73139821,234.22,234.14,6.73139821]
[1732695180014,6.73139821,234.22,234.17,2.1356]
[1732695180214,6.73139821,234.22,234.14,6.73139821]
[1732695180517,2.18,234.23,234.16,6.73139821]
[1732695181311,2.18,234.23,234.18,2.1356]
[1732695181510,8.91139821,234.23,234.18,2.1356]
[1732695182114,8.91139821,234.23,234.14,6.73139821]
[1732695182310,8.91139821,234.23,234.19,2.1355]
[1732695183422,2.18,234.27,234.22,6.73139821]